Cogmind - Beta 15 @@@ ROGUE MODE // 2025.06.03 @ 20:28:47 Player: Figgis Result: Destroyed by Y-54 Guardian with Flak Gun Performance ------------- Evolutions (0) 0 Regions Visited (3) 600 Robots Destroyed (31) 155 Value Destroyed (946) 946 Prototype IDs (1) 20 Alien Tech Used (0) 0 Bonus (0) 0 TOTAL SCORE: 1721 Bonus ------- None Cogmind --------- Core Integrity 0/250 Matter 30/300 Energy 89/100 System Corruption 0% Temperature Cool (12) Movement Walking (190) Ox1 Location -7/Recycling Parts ------- > --- POWER (1) -------- (None) > --- PROPULSION (2) --- Aluminum Leg Aluminum Leg > --- UTILITY (2) ------ Large Storage Unit Gun Armor > --- WEAPON (2+1) ----- Medium Laser Plasma Cutter > --- INVENTORY (15) --- Subdweller Power Source Aluminum Leg Subdweller Monowheel Subdweller Optics Sensor Array Signal Interpreter Terrain Scanner Improved Targeting Computer Improved Targeting Computer Subdweller Laser Subdweller Beam Cannon Subdweller Machine Gun Subdweller Shrapnel Launcher Scrap Shield Fragment (48) Peak State ------------ > --- POWER ------------ Ion Engine > --- PROPULSION ------- Aluminum Leg Aluminum Leg > --- UTILITY ---------- Large Storage Unit Gun Armor > --- WEAPON ----------- Medium Laser Particle Cannon > --- INVENTORY -------- Subdweller Power Source Aluminum Leg Aluminum Leg Subdweller Monowheel Subdweller Optics Sensor Array Signal Interpreter Terrain Scanner Improved Targeting Computer Improved Targeting Computer Subdweller Laser Subdweller Beam Cannon Subdweller Machine Gun Subdweller Shrapnel Launcher Plasma Cutter [Rating: 18] Favorites ----------- Power Ion Engine Engine Ion Engine Propulsion Aluminum Leg Leg Aluminum Leg Utility Large Storage Unit Device Sensor Array Storage Large Storage Unit Processor Improved Targeting Computer Protection Gun Armor Weapon Medium Laser Energy Gun Medium Laser Energy Cannon Beam Cannon Launcher Subdweller Shrapnel Launcher Special Weapon Plasma Cutter Build | -11 -10 -10 -7 ------- Run | Yrd Mat Sub Rec Slots Evolved . | . . . . Power . | . . . . Propulsion . | . . . . Utility . | . . . . Weapon . | . . . . Parts Attached 21 | 3 9 8 1 Power 3 | 1 1 1 . Engine 3 | 1 1 1 . Core . | . . . . Reactor . | . . . . Propulsion 7 | 2 2 2 1 Treads . | . . . . Leg 7 | 2 2 2 1 Wheel . | . . . . Hover . | . . . . Flight . | . . . . Utility 5 | . 4 1 . Device 1 | . 1 . . Storage 2 | . 2 . . Processor 1 | . 1 . . Hackware . | . . . . Protection 1 | . . 1 . Artifact . | . . . . Weapon 6 | . 2 4 . Energy Gun 2 | . 1 1 . Energy Cannon 2 | . 1 1 . Ballistic Gun . | . . . . Ballistic Cannon . | . . . . Launcher 1 | . . 1 . Special Weapon 1 | . . 1 . Impact Weapon . | . . . . Slashing Weapon . | . . . . Piercing Weapon . | . . . . Special Melee Weapon . | . . . . Unidentified Prototypes 1 | . . 1 . Parts Lost 7 | . . 7 . Power 2 | . . 2 . Propulsion 2 | . . 2 . Utility . | . . . . Weapon 3 | . . 3 . Highest Loss Streak 4 | . . 4 . To Critical Strikes . | . . . . Average Backups 12 | 2 10 14 13 Power . | . . . 1 Propulsion 3 | . 4 3 2 Utility 4 | . 3 6 6 Weapon 2 | 1 2 2 4 Tool/Special . | . . . . Unused Backups 15 | . 3 . 12 Power 2 | . 1 . 1 Propulsion 2 | . . . 2 Utility 6 | . . . 6 Weapon 5 | . 2 . 3 Tool/Special . | . . . . Average Slot Usage (%) 89 | . 99 81 75 Engine 11 | . 14 9 . Leg 24 | . 28 22 25 Device 3 | . 7 . . Storage 13 | . 13 12 12 Processor 6 | . 6 6 . Protection 3 | . . 5 12 Energy Gun 13 | . 13 12 12 Energy Cannon 11 | . 13 9 . Peak Build Rating 18 | 3 9 18 17 Average Rating 11 | 1 8 13 17 On Entrance 7 | . 3 9 16 Naked Turns . | . . . . Heaviest Build 35 | 3 31 35 27 Greatest Support 20 | 3 20 20 20 Greatest Overweight (x) 3 | . 2 3 1 Average Overweight (x) . | . . 1 1 Largest Inventory Capacity 15 | 5 15 15 15 Average Capacity 13 | 5 12 15 15 Most Carried 15 | 5 15 15 14 Average Carried 12 | 3 10 14 14 Final Capacity 15 | 5 15 15 15 Final Carried 15 | 5 15 15 14 Class Distribution -------------------- 96% | Mutant 3% | Gunner Dominant Class ---------------- Mutant | -10/Materials Mutant | -10/Subcaves Mutant | -7/Recycling Resources | -11 -10 -10 -7 ----------- Run | Yrd Mat Sub Rec Matter Collected 380 | 188 122 70 . Remotely . | . . . . Salvage Created 1074 | . 599 475 . Parts 61 | . 36 25 . Haulers Intercepted 1 | . 1 . . Recyclers Shooed . | . . . . Parts Field Recycled . | . . . . Retrieved Matter . | . . . . Parts Self-Destructed 5 | . . 5 . Prevented . | . . . . Kills | -11 -10 -10 -7 ------- Run | Yrd Mat Sub Rec Combat Hostiles Destroyed 25 | . 10 15 . Guns 6 | . 1 5 . Cannons 15 | . 9 6 . AOE 3 | . . 3 . Classes Destroyed 7 | . 4 3 . Hauler 1 | . 1 . . Recycler 1 | . 1 . . Turret 2 | . . 2 . Watcher 2 | . 2 . . Swarmer 4 | . . 4 . Grunt 10 | . 10 . . Subdweller 11 | . . 11 . Best Kill Streak 5 | . 3 5 . Combat Bots Only 4 | . 3 4 . Max Kills in Single Turn 1 | . 1 1 . Gunslinging . | . . . . Exploded 1 | . . 1 . Melee . | . . . . Uniques/NPCs Destroyed . | . . . . Combat | -11 -10 -10 -7 -------- Run | Yrd Mat Sub Rec Hostile Shots Fired 157 | . 15 133 9 Missed 58 | . 5 50 3 Hits 99 | . 10 83 6 Projectile 99 | . 10 83 6 Critical Strikes 2 | . . 2 . Damage Taken 1346 | . 114 1199 33 Core 250 | . 46 198 6 Absorbed by Shields . | . . . . Core Remaining (%) 100 | 100 . . . Volleys Fired 80 | . 28 51 1 Largest 2 | . 2 2 1 Hottest 118 | . 110 118 20 Shots Fired 139 | . 55 83 1 Gun 59 | . 27 32 . Cannon 60 | . 28 32 . Launcher 12 | . . 12 . Special 8 | . . 7 1 Kinetic 12 | . . 12 . Thermal 127 | . 55 71 1 Explosive . | . . . . Electromagnetic . | . . . . Robot Hit Streak 22 | . 11 22 3 Robot Miss Streak 4 | . 4 2 . Penetration Max . | . . . . Secondary Targets . | . . . . Shots Hit Robots 84 | . 38 45 1 Core Hits 47 | . 20 27 . Critical Kills 1 | . . 1 . Critical Parts Destroyed . | . . . . Critical Strikes 9 | . 5 4 . Burn 8 | . 5 3 . Meltdown 1 | . . 1 . Melee Attacks . | . . . . Impact . | . . . . Slashing . | . . . . Piercing . | . . . . Sneak Attacks . | . . . . Combat Hostiles . | . . . . Follow-up Attacks . | . . . . Damage Inflicted 2026 | . 625 1391 10 Guns 513 | . 207 306 . Cannons 804 | . 418 386 . Explosions 699 | . . 699 . Melee . | . . . . Ramming . | . . . . Kinetic 699 | . . 699 . Thermal 1327 | . 625 692 10 Explosive . | . . . . Electromagnetic . | . . . . Impact . | . . . . Slashing . | . . . . Piercing . | . . . . Highest Corruption . | . . . . Average Corruption . | . . . . Corruption Purged . | . . . . Corruption Blocked . | . . . . Overload Shots . | . . . . Overflow Damage 15 | . 5 10 . Projectiles 15 | . 5 10 . Explosions . | . . . . Melee . | . . . . Knockbacks . | . . . . Impact . | . . . . Kinetic . | . . . . Secondary . | . . . . Self-Inflicted Damage 36 | . . 36 . Shots 1 | . . 1 . Rammed . | . . . . Targets Rammed . | . . . . Kicked . | . . . . Crushed . | . . . . Highest Temperature 328 | . 158 328 . Average Temperature 77 | . 64 109 . Received Heat Transfer 1090 | . 63 1015 12 Effects 2 | . . 2 . Interference 2 | . . 2 . Siege Activations . | . . . . Martial Activations . | . . . . Shielding Activations . | . . . . Robots Disrupted . | . . . . Combat Hostiles . | . . . . Robots Corrupted . | . . . . Combat Hostiles . | . . . . Parts Fried . | . . . . Impact Corruptions . | . . . . Robots Melted 1 | . . 1 . Combat Hostiles 1 | . . 1 . Parts Melted 10 | . 4 6 . Heat Transferred 3700 | . 1813 1850 37 Parts Sabotaged . | . . . . Parts Stolen . | . . . . Parts Stripped . | . . . . Power Chain Reactions . | . . . . Alert | -11 -10 -10 -7 ------- Run | Yrd Mat Sub Rec Maximum Alert Level . | . . . . Low Security (%) 100 | 100 100 . 100 Level 1 . | . . . . Level 2 . | . . . . Level 3 . | . . . . Level 4 . | . . . . Level 5 . | . . . . High Security . | . . . . Max Security . | . . . . Peak Influence 77 | . 77 . 43 Initial 43 | . . . 43 Average 20 | . 20 . 43 Influence Increases 633 | . 288 345 . Destroy 0b10 Robot/C 320 | . 200 120 . Destroy 0b10 Robot/NC 20 | . 20 . . Destroy Leader 56 | . 56 . . Successful Hack 12 | . 12 . . Lose Combat Pursuer 225 | . . 225 . Influence Decreases 590 | . 288 253 49 Entered New Map 49 | . . . 49 Time Decay 482 | . 288 194 . Lost Part 59 | . . 59 . Squads Dispatched 3 | . 3 . . Investigation 1 | . 1 . . Extermination . | . . . . Reinforcement 2 | . 2 . . Assault . | . . . . Garrison . | . . . . Intercept . | . . . . Searches Triggered . | . . . . Construction Impeded . | . . . . Haulers Reinforced . | . . . . Active Scanning Responses . | . . . . Cargo Convoy Interrupts . | . . . . Stealth | -11 -10 -10 -7 --------- Run | Yrd Mat Sub Rec Distress Signals . | . . . . Communications Jammed . | . . . . Distress Signals . | . . . . Times Spotted 38 | . 15 22 1 Peak Tracking Total 6 | . 2 6 1 Tactical Retreats 5 | . . 5 . Traps | -11 -10 -10 -7 ------- Run | Yrd Mat Sub Rec Traps Triggered 2 | . 1 1 . Indirectly . | . . . . Trap Hack Attempts . | . . . . Triggered . | . . . . Disarmed . | . . . . Reprogrammed . | . . . . Reused . | . . . . Traps Extracted . | . . . . Installed . | . . . . Triggered . | . . . . Machines | -11 -10 -10 -7 ---------- Run | Yrd Mat Sub Rec Machines Disabled 3 | . . 3 . Max in Single Turn 2 | . . 2 . Machines Repaired . | . . . . Machines Dismantled . | . . . . Machines Sabotaged . | . . . . Overloaded Fab Kills . | . . . . Hacking | -11 -10 -10 -7 --------- Run | Yrd Mat Sub Rec Machines Accessed 4 | . 4 . . Terminals 4 | . 4 . . Fabricators . | . . . . Repair Stations . | . . . . Recycling Units . | . . . . Scanalyzers . | . . . . Garrison Access . | . . . . Total Hacks 11 | . 11 . . Successful 3 | . 3 . . Failed 8 | . 8 . . Catastrophic . | . . . . Database Lockouts . | . . . . Manual 13 | . 13 . . Terminals 11 | . 11 . . Fabricators . | . . . . Repair Stations . | . . . . Recycling Units . | . . . . Scanalyzers . | . . . . Garrison Access . | . . . . Terminal Hacks 3 | . 3 . . Robot Analysis 3 | . 3 . . Fabricator Hacks . | . . . . Repair Station Hacks . | . . . . Recycling Unit Hacks . | . . . . Scanalyzer . | . . . . Garrison Access Hacks . | . . . . Unauthorized Hacks . | . . . . Terminals . | . . . . Fabricators . | . . . . Repair Stations . | . . . . Recycling Units . | . . . . Scanalyzers . | . . . . Garrison Access . | . . . . Data Cores Recovered . | . . . . Used . | . . . . Hacking Detections 4 | . 4 . . Full Trace Events . | . . . . Feedback Events . | . . . . Feedback Blocked . | . . . . Robot Schematics Acquired . | . . . . Robots Built . | . . . . Authchips . | . . . . Time . | . . . . Total Robot Build Rating . | . . . . Part Schematics Acquired . | . . . . Parts Built . | . . . . Authchips . | . . . . Time . | . . . . Total Part Build Rating . | . . . . Parts Repaired . | . . . . Time . | . . . . Parts Recycled . | . . . . Recycled Matter . | . . . . Retrieved Matter . | . . . . Retrieved Components . | . . . . Parts Scanalyzed . | . . . . Part Schematics Acquired . | . . . . Parts Damaged . | . . . . Bothacking | -11 -10 -10 -7 ------------ Run | Yrd Mat Sub Rec Used RIF Installer . | . . . . Robots Hacked . | . . . . Non-combat . | . . . . Combat . | . . . . Robot Hacks Applied . | . . . . Relay Couplers Released . | . . . . Fabnet Peak Effective % . | . . . . Robots Rewired . | . . . . Allies Hacked . | . . . . Hacks Repelled . | . . . . Allies | -11 -10 -10 -7 -------- Run | Yrd Mat Sub Rec Total Allies . | . . . . Largest Group . | . . . . Highest-Rated Group . | . . . . Highest-Rated Ally . | . . . . Total Orders . | . . . . Ally Attacks . | . . . . Total Damage . | . . . . Kills . | . . . . Allies Corrupted . | . . . . Allies Melted . | . . . . Intel | -11 -10 -10 -7 ------- Run | Yrd Mat Sub Rec Active Infowar (turns) 624 | . 624 . . Sensors 624 | . 624 . . Robot Analysis Total 3 | . 3 . . Derelict Logs Recovered 1 | . . 1 . Drone Launches . | . . . . Drone Recoveries . | . . . . Exploration | -11 -10 -10 -7 ------------- Run | Yrd Mat Sub Rec Turns Passed 2736 | 29 1124 1575 8 Spaces Moved 1250 | 39 544 664 3 Core 44 | 39 5 . . Treads . | . . . . Legs 1206 | . 539 664 3 Wheels . | . . . . Hover . | . . . . Flight . | . . . . Fastest Speed 50 | 50 50 190 190 Average Speed 183 | 50 159 210 190 Slowest Speed 330 | 50 260 330 190 Overloaded Moves . | . . . . Propulsion Burnouts . | . . . . Robots Hopped . | . . . . Potential Cave-ins . | . . . . Cave-ins Triggered . | . . . . Exploration Rate (%) 26 | 3 78 24 2 Regions Visited 3 Branch Regions 2 Pre-discovered Areas 1 | . . 1 . Known Exits Taken . | . . . . Unknown Exits Taken 3 | 1 1 1 . Scrap Searched 8 | . . 8 . Spaces Dug 31 | . . 31 . Terrain Destroyed 124 | . . 124 . Melee . | . . . . Projectile . | . . . . AOE 124 | . . 124 . Terrain Rammed . | . . . . Walls Destroyed . | . . . . Machines Disabled . | . . . . Actions | -11 -10 -10 -7 --------- Run | Yrd Mat Sub Rec Total 1547 | 46 746 750 5 Wait 152 | . 142 10 . Move 1247 | 38 543 663 3 Hop . | . . . . Pick Up 32 | 5 17 10 . Fast Attach 5 | 3 1 1 . Attach 10 | . 3 6 1 Detach 1 | . . 1 . Swap 7 | . 5 2 . Drop 13 | . 7 6 . Fire 80 | . 28 51 1 Melee . | . . . . Ram . | . . . . Kick . | . . . . Crush . | . . . . Escape Stasis . | . . . . Rewire . | . . . . Trap . | . . . . Miscellaneous . | . . . . Route ------- -11/Scrapyard -10/Materials (discovered 5 exits: [*Mat x3] / [*Min] / [*Sub]) -10/Subcaves -7/Recycling History --------- Turn | Location | Event 11 | -11/Scrapyard | Discovered new exit (range 16) 30 | -11/Scrapyard | Entered Materials 66 | -10/Materials | Discovered new exit (range 6) 152 | -10/Materials | Discovered new exit (range 6) 219 | -10/Materials | Discovered new exit (range 11) 279 | -10/Materials | Discovered new exit (range 16) 311 | -10/Materials | Build established: Mutant 1135 | -10/Materials | Discovered new exit (range 6) 1154 | -10/Materials | Entered Subcaves 1282 | -10/Subcaves | Ambushed by Subdwellers from Twisted Machinery 1564 | -10/Subcaves | A Subdweller sparked back to life 1564 | -10/Subcaves | A Subdweller sparked back to life 1564 | -10/Subcaves | A Subdweller sparked back to life 1599 | -10/Subcaves | Core integrity fell below 50% 1614 | -10/Subcaves | Lost 4 parts (1p1n2w) 1646 | -10/Subcaves | Found Prototype Protection 1883 | -10/Subcaves | Identified Gun Armor 1884 | -10/Subcaves | Attached Gun Armor, gained temporary slots: Weapon x2 2382 | -10/Subcaves | Core integrity fell below 20% 2406 | -10/Subcaves | Lost 3 parts (1p1n1w) 2678 | -10/Subcaves | Ambushed by Subdweller buried in earth 2678 | -10/Subcaves | Discovered new exit (range 8) 2729 | -10/Subcaves | Entered Recycling 2737 | -7/Recycling | Destroyed by Y-54 Guardian with Flak Gun Last Messages --------------- 02373_ Ion Engine destroyed. 02375_ Aluminum Leg destroyed. 02514_ RZ-QYK(u) deconstructs Twisted Machinery. 02628_ Subatomizers dissect the Sub. Beam Cannon. 02641_ Subatomizers dissect the Sub. Power Source. 02678_ EXIT=FOUND 02679_ HT-KIR(R): "ARGHSUB!" 02680_ HT-KIR(R) destroyed. 02680_ Machine disabled. 02683_ AS-PJT(R): "ARGHSUB!" 02685_ UK-90C(R): "SLEEPOVER!" 02686_ Autobeam Turret destroyed. 02690_ AS-PJT(R) destroyed. 02692_ UK-90C(R) destroyed. 02694_ Temporary Weapon slot lost. 02700_ Subatomizers dissect the Sub. Power Source. 02720_ Acquired Scrap Shield Fragment. LOCATION=UNKNOWN GOAL=ESCAPE 02737_ Y-54 Guardian springs to life. Map ----- +----------------------------------------------------+ | ???????????????????????????? | | ???????????????????????????? | | ???????????????????????????? | | ???????????????????????????? | | ???????????????????????????? | | ???????????????????????????? | | ???????????????????????????? | | ???????????????????????????? | | ???????????????????????????? | | ???????????????????????????? | | ???????????????????????????? | | ???????????????????????????? | | ???????????????????????????? | | ???????????????????????????? | | ???????????????????????????? | | ???????????????????????????? | | ???????????????????????????? | | ???????????????????????????? | | ???????????????????????????? | | ???????????????????????????? | | ??#####????????????????????? | | ??# #????????????????????? | | ??# #????????????????????? | | ??# #????????????????????? | | ??# #????????????????????? | | ??#@ #????????????????????? | | ?#Y +????????????????????? | | ?## #????????????????????? | | ??# #????????????????????? | | ??# #????????????????????? | | ??# #????????????????????? | | ?? ????????????????????? | | ?? ????????????????????? | | ?? #???????????????????? | | ?? #???????????????????? | | ?? #???????????????????? | | ??# ##???????????????????? | | ??? #????????????????????? | | ??? #????????????????????? | | ??? Y????????????????????? | | ??? ?????????????????????? | | ???????????????????????????? | | ???????????????????????????? | | ???????????????????????????? | | ???????????????????????????? | | ???????????????????????????? | | ???????????????????????????? | | ???????????????????????????? | | ???????????????????????????? | | ???????????????????????????? | +----------------------------------------------------+ Best States ------------- Heat Dissipation 25 Energy Generation 10 Energy Capacity 250 Matter Stores 300 Matter Capacity 300 Sight Range 16 Robot Scan Range 14 Terrain Scan Density 10 Armor Coverage 60 Evasion (%) 55 Targeting Accuracy 6 Item Schematics ----------------- None Robot Schematics ------------------ None Fabricated ------------ Nothing Repaired ---------- Nothing Alien Tech Used ----------------- None Achievements -------------- None Challenges ------------ None Game ------ Seed DrainedRefineryTelecube Manual? 0 Play Time 00:13:08 Cumulative 177.8 hours Start 2025.06.03 @ 20:15:35 End 2025.06.03 @ 20:28:47 Sessions 1 Manual Loads 0 Difficulty Rogue Special Mode None Game No. 276 Rogue 273 Adventurer 3 Explorer 0 Win Type - Total 1 Types 1/0/0/0/0/0/0/0/0/0 Lore% 61 Gallery% 58 Achievement% 46 Wizard Run 0 Options --------- Layout 0 ASCII 0 Keyboard 0 Movement Mouse Keybinds 0 Fullscreen 2 Font 18/SmallcapsGlow Map View 76x50 Zoom Use 0% Tactical HUD 1 Map Filters NONE Filters NONE Steam 1 RUN: e99e437d-16a1-488c-9079-afa3d8b18f86